[Event "Late-Titled-Tuesday-Blitz-September-19-2023"]
[Site "Chess.com"]
[Date "2023.09.19"]
[Round "4"]
[White "maciek_92"]
[Black "GMBenjaminBok"]
[Result "0-1"]
[WhiteElo "2730"]
[BlackElo "2959"]
[TimeControl "180+1"]
[EndTime "14:38:16 PDT"]
[Termination "GMBenjaminBok won by resignation"]

1. c4 {[%clk 0:03:00.9]} 1... c6 {[%clk 0:02:53.3]} 2. Nf3 {[%clk 0:03:00.6]}
2... d5 {[%clk 0:02:53.5]} 3. e3 {[%clk 0:03:01.3]} 3... Nf6 {[%clk 0:02:53.5]}
4. b3 {[%clk 0:03:01.8]} 4... Bf5 {[%clk 0:02:50.6]} 5. Bb2 {[%clk 0:03:02]}
5... e6 {[%clk 0:02:51.2]} 6. Be2 {[%clk 0:03:01]} 6... Nbd7 {[%clk 0:02:48.9]}
7. Nc3 {[%clk 0:02:58.1]} 7... h6 {[%clk 0:02:48.6]} 8. O-O {[%clk 0:02:57.9]}
8... Bd6 {[%clk 0:02:48.4]} 9. d4 {[%clk 0:02:53.5]} 9... O-O {[%clk 0:02:48.3]}
10. Bd3 {[%clk 0:02:54.1]} 10... Ne4 {[%clk 0:02:43.8]} 11. Qc2 {[%clk
0:02:53.8]} 11... Ndf6 {[%clk 0:02:41.5]} 12. h3 {[%clk 0:02:22.5]} 12... Qe7
{[%clk 0:02:39.1]} 13. Nd2 {[%clk 0:02:20.6]} 13... Nxd2 {[%clk 0:02:17.5]} 14.
Qxd2 {[%clk 0:02:21.5]} 14... Rfe8 {[%clk 0:01:59]} 15. Rad1 {[%clk 0:02:05.9]}
15... Rad8 {[%clk 0:01:51.5]} 16. Qc2 {[%clk 0:01:53.4]} 16... Bxd3 {[%clk
0:01:50.1]} 17. Qxd3 {[%clk 0:01:54.3]} 17... e5 {[%clk 0:01:42.2]} 18. cxd5
{[%clk 0:01:53.5]} 18... e4 {[%clk 0:01:31.8]} 19. Qe2 {[%clk 0:01:47.8]} 19...
cxd5 {[%clk 0:01:31.6]} 20. Rc1 {[%clk 0:01:36.3]} 20... Bb8 {[%clk 0:01:30.1]}
21. Rc2 {[%clk 0:01:31.1]} 21... Qd6 {[%clk 0:01:12.2]} 22. g3 {[%clk
0:01:30.1]} 22... h5 {[%clk 0:01:12.7]} 23. h4 {[%clk 0:01:28]} 23... Ng4 {[%clk
0:01:01.7]} 24. Nb5 {[%clk 0:01:20.1]} 24... Qd7 {[%clk 0:00:59.3]} 25. Rfc1
{[%clk 0:01:13.2]} 25... Re6 {[%clk 0:00:56.6]} 26. Bc3 {[%clk 0:00:56.7]} 26...
Rf6 {[%clk 0:00:51.4]} 27. Be1 {[%clk 0:00:56.1]} 27... Rf3 {[%clk 0:00:47.9]}
28. Rc5 {[%clk 0:00:40.5]} 28... Qf5 {[%clk 0:00:26.4]} 29. Nc7 {[%clk
0:00:29.2]} 29... g5 {[%clk 0:00:18.6]} 30. Nxd5 {[%clk 0:00:20.6]} 30... Rxd5
{[%clk 0:00:18.5]} 31. Rxd5 {[%clk 0:00:21.1]} 31... Qxd5 {[%clk 0:00:17.5]} 32.
Rc8+ {[%clk 0:00:21.8]} 32... Kg7 {[%clk 0:00:17.9]} 33. Rxb8 {[%clk 0:00:22.2]}
33... gxh4 {[%clk 0:00:18.1]} 34. Qc2 {[%clk 0:00:13.7]} 34... Qf5 {[%clk
0:00:05.6]} 35. Qc5 {[%clk 0:00:10]} 35... Qxc5 {[%clk 0:00:05]} 36. dxc5 {[%clk
0:00:10.9]} 36... hxg3 {[%clk 0:00:05.6]} 37. fxg3 {[%clk 0:00:09]} 37... Rxe3
{[%clk 0:00:06]} 38. Kf1 {[%clk 0:00:03.4]} 38... Rd3 {[%clk 0:00:03.1]} 39. b4
{[%clk 0:00:02.9]} 39... Ne3+ {[%clk 0:00:03]} 40. Ke2 {[%clk 0:00:03.3]} 40...
Nc2 {[%clk 0:00:03.8]} 41. b5 {[%clk 0:00:02.6]} 41... Nd4+ {[%clk 0:00:03.7]}
42. Kf1 {[%clk 0:00:02]} 42... Rd1 {[%clk 0:00:02.7]} 43. Rxb7 {[%clk
0:00:01.4]} 43... Nf3 {[%clk 0:00:01.8]} 44. c6 {[%clk 0:00:02.3]} 44... Rxe1+
{[%clk 0:00:02.2]} 45. Kf2 {[%clk 0:00:03.2]} 45... Rc1 {[%clk 0:00:02.9]} 46.
Rxa7 {[%clk 0:00:03.6]} 46... Rc3 {[%clk 0:00:03]} 47. b6 {[%clk 0:00:03.2]}
47... Nd4 {[%clk 0:00:03.3]} 48. b7 {[%clk 0:00:02.2]} 48... e3+ {[%clk
0:00:04.2]} 49. Kg2 {[%clk 0:00:02.4]} 49... e2 {[%clk 0:00:04.1]} 50. b8=Q
{[%clk 0:00:02.8]} 50... e1=Q {[%clk 0:00:04.5]} 51. Rxf7+ {[%clk 0:00:02.2]}
51... Kxf7 {[%clk 0:00:04.4]} 52. Qf4+ {[%clk 0:00:03.1]} 52... Ke6 {[%clk
0:00:04.6]} 53. Qxd4 {[%clk 0:00:02.9]} 53... Rc2+ {[%clk 0:00:05.1]} 54. Kf3
{[%clk 0:00:02.5]} 54... Qe2+ {[%clk 0:00:05.5]} 55. Kf4 {[%clk 0:00:02.7]}
55... Rc4 {[%clk 0:00:05.8]} 0-1

[Event "Late-Titled-Tuesday-Blitz-September-19-2023"]
[Site "Chess.com"]
[Date "2023.09.19"]
[Round "4"]
[White "FabianoCaruana"]
[Black "koncheto"]
[Result "1-0"]
[WhiteElo "3043"]
[BlackElo "2562"]
[TimeControl "180+1"]
[EndTime "14:38:35 PDT"]
[Termination "FabianoCaruana won by resignation"]

1. c4 {[%clk 0:03:00.9]} 1... Nf6 {[%clk 0:02:58.9]} 2. b3 {[%clk 0:03:00.6]}
2... e6 {[%clk 0:02:59.8]} 3. Bb2 {[%clk 0:02:59.7]} 3... b6 {[%clk 0:02:55.4]}
4. Nf3 {[%clk 0:02:59.3]} 4... Bb7 {[%clk 0:02:55.9]} 5. e3 {[%clk 0:02:59.4]}
5... d5 {[%clk 0:02:56.6]} 6. cxd5 {[%clk 0:02:58.6]} 6... Nxd5 {[%clk 0:02:54]}
7. Bb5+ {[%clk 0:02:57.1]} 7... c6 {[%clk 0:02:52.6]} 8. Be2 {[%clk 0:02:57.5]}
8... Nd7 {[%clk 0:02:51.3]} 9. O-O {[%clk 0:02:57.4]} 9... N7f6 {[%clk
0:02:51.9]} 10. d4 {[%clk 0:02:55.4]} 10... Be7 {[%clk 0:02:52.1]} 11. Nbd2
{[%clk 0:02:55.7]} 11... O-O {[%clk 0:02:51.4]} 12. Rc1 {[%clk 0:02:54.3]} 12...
c5 {[%clk 0:02:51.5]} 13. dxc5 {[%clk 0:02:54.1]} 13... Bxc5 {[%clk 0:02:51.7]}
14. a3 {[%clk 0:02:54.7]} 14... Rc8 {[%clk 0:02:51.1]} 15. b4 {[%clk 0:02:54]}
15... Be7 {[%clk 0:02:51.3]} 16. Qb3 {[%clk 0:02:50.9]} 16... Rxc1 {[%clk
0:02:48.9]} 17. Rxc1 {[%clk 0:02:51.8]} 17... Qb8 {[%clk 0:02:49.2]} 18. Be5
{[%clk 0:02:46.2]} 18... Bd6 {[%clk 0:02:45]} 19. Nc4 {[%clk 0:02:38.5]} 19...
Bxe5 {[%clk 0:02:40.4]} 20. Ncxe5 {[%clk 0:02:39.4]} 20... Rc8 {[%clk
0:02:40.2]} 21. Qb2 {[%clk 0:02:34.1]} 21... Ne4 {[%clk 0:02:36.5]} 22. Bc4
{[%clk 0:02:28.3]} 22... Ndc3 {[%clk 0:02:31]} 23. Bf1 {[%clk 0:02:24.3]} 23...
Qc7 {[%clk 0:02:26]} 24. Rc2 {[%clk 0:02:15.2]} 24... h5 {[%clk 0:02:12]} 25. h4
{[%clk 0:02:11.2]} 25... Qe7 {[%clk 0:02:04]} 26. Nd3 {[%clk 0:02:01.4]} 26...
Ba6 {[%clk 0:01:51.3]} 27. Nf4 {[%clk 0:01:33.3]} 27... Nd1 {[%clk 0:01:39.8]}
28. Rxc8+ {[%clk 0:01:31.2]} 28... Bxc8 {[%clk 0:01:40.7]} 29. Qc2 {[%clk
0:01:30.7]} 29... Ndc3 {[%clk 0:01:33.3]} 30. Nxh5 {[%clk 0:00:57.9]} 30... Qd6
{[%clk 0:01:23]} 31. Ng3 {[%clk 0:00:49.3]} 31... Bb7 {[%clk 0:01:19.7]} 32.
Nxe4 {[%clk 0:00:49.3]} 32... Nxe4 {[%clk 0:01:20.6]} 33. Bd3 {[%clk 0:00:49]}
33... Nf6 {[%clk 0:01:08.4]} 34. Be2 {[%clk 0:00:48.6]} 34... Ng4 {[%clk
0:01:05.7]} 35. Qc4 {[%clk 0:00:43.5]} 35... Bxf3 {[%clk 0:00:46.1]} 36. Bxf3
{[%clk 0:00:44.4]} 36... Qh2+ {[%clk 0:00:46.3]} 37. Kf1 {[%clk 0:00:44.8]}
37... Qh1+ {[%clk 0:00:47.2]} 38. Ke2 {[%clk 0:00:44.6]} 38... Nh2 {[%clk
0:00:48.1]} 39. Qc8+ {[%clk 0:00:38.3]} 39... Kh7 {[%clk 0:00:48.3]} 40. Qc2+
{[%clk 0:00:39]} 40... g6 {[%clk 0:00:47.4]} 41. e4 {[%clk 0:00:17.5]} 41...
Qf1+ {[%clk 0:00:42]} 42. Ke3 {[%clk 0:00:17.6]} 42... Qe1+ {[%clk 0:00:42.6]}
43. Kf4 {[%clk 0:00:15.8]} 43... f6 {[%clk 0:00:20.5]} 44. Kg3 {[%clk
0:00:03.6]} 44... Nf1+ {[%clk 0:00:18.5]} 45. Kh3 {[%clk 0:00:04.1]} 45... Nd2
{[%clk 0:00:13.5]} 46. Qc7+ {[%clk 0:00:04.2]} 46... Kh6 {[%clk 0:00:13.3]} 47.
Qf4+ {[%clk 0:00:04.5]} 47... Kg7 {[%clk 0:00:12.3]} 48. Qg3 {[%clk 0:00:01.5]}
48... Qh1+ {[%clk 0:00:06.3]} 49. Qh2 {[%clk 0:00:02]} 49... Qe1 {[%clk
0:00:06.9]} 50. Qc7+ {[%clk 0:00:02.6]} 50... Kh6 {[%clk 0:00:06.8]} 51. Qg3
{[%clk 0:00:03.5]} 51... Nf1 {[%clk 0:00:06.1]} 52. Qf4+ {[%clk 0:00:03.7]}
52... Kg7 {[%clk 0:00:06.3]} 53. Qc7+ {[%clk 0:00:03.6]} 53... Kh6 {[%clk
0:00:06.2]} 54. Qf4+ {[%clk 0:00:04.1]} 54... Kg7 {[%clk 0:00:06.4]} 55. Bg4
{[%clk 0:00:04.7]} 55... Nd2 {[%clk 0:00:05]} 56. Kh2 {[%clk 0:00:04.3]} 56...
Nf1+ {[%clk 0:00:05.1]} 57. Kh3 {[%clk 0:00:04.8]} 57... Nd2 {[%clk 0:00:06]}
58. Qg3 {[%clk 0:00:04.4]} 58... Qh1+ {[%clk 0:00:05.6]} 59. Qh2 {[%clk
0:00:04.9]} 59... Qf1 {[%clk 0:00:06.2]} 60. Qc7+ {[%clk 0:00:05.3]} 60... Kh6
{[%clk 0:00:06.1]} 61. Qf4+ {[%clk 0:00:06.2]} 61... g5 {[%clk 0:00:05.2]} 62.
Qxd2 {[%clk 0:00:05.7]} 62... Qh1+ {[%clk 0:00:03.4]} 63. Kg3 {[%clk 0:00:06.2]}
63... Qxh4+ {[%clk 0:00:03.3]} 64. Kf3 {[%clk 0:00:06.8]} 64... f5 {[%clk
0:00:04.2]} 65. exf5 {[%clk 0:00:06.9]} 65... exf5 {[%clk 0:00:04.7]} 66. Qd6+
{[%clk 0:00:07.4]} 66... Kg7 {[%clk 0:00:04.5]} 67. Qd7+ {[%clk 0:00:07.4]}
67... Kh6 {[%clk 0:00:04.6]} 68. Qxf5 {[%clk 0:00:08.3]} 1-0

[Event "Late-Titled-Tuesday-Blitz-September-19-2023"]
[Site "Chess.com"]
[Date "2023.09.19"]
[Round "4"]
[White "sergoy"]
[Black "amanmuhammethommadov"]
[Result "1-0"]
[WhiteElo "2911"]
[BlackElo "2565"]
[TimeControl "180+1"]
[EndTime "14:38:38 PDT"]
[Termination "sergoy won by resignation"]

1. d4 {[%clk 0:03:00.9]} 1... Nf6 {[%clk 0:03:00.1]} 2. c4 {[%clk 0:03:01.3]}
2... g6 {[%clk 0:03:00.6]} 3. Nf3 {[%clk 0:03:01.6]} 3... Bg7 {[%clk 0:03:01.1]}
4. g3 {[%clk 0:03:02.4]} 4... O-O {[%clk 0:03:01.8]} 5. Bg2 {[%clk 0:03:03]}
5... d6 {[%clk 0:03:02.7]} 6. O-O {[%clk 0:03:03.4]} 6... c6 {[%clk 0:03:03.6]}
7. Nc3 {[%clk 0:03:03.8]} 7... Bf5 {[%clk 0:03:04.3]} 8. Ne1 {[%clk 0:03:00.7]}
8... e5 {[%clk 0:03:03.9]} 9. d5 {[%clk 0:02:59.1]} 9... cxd5 {[%clk 0:03:04.8]}
10. cxd5 {[%clk 0:02:59.2]} 10... Bd7 {[%clk 0:03:04.6]} 11. e4 {[%clk
0:02:55.5]} 11... b5 {[%clk 0:03:03.6]} 12. Nd3 {[%clk 0:02:55.2]} 12... a5
{[%clk 0:03:03.8]} 13. a3 {[%clk 0:02:54.8]} 13... a4 {[%clk 0:03:03.9]} 14. h3
{[%clk 0:02:50.2]} 14... Na6 {[%clk 0:03:03.4]} 15. Be3 {[%clk 0:02:50]} 15...
Qa5 {[%clk 0:03:03.6]} 16. Na2 {[%clk 0:02:41.7]} 16... Rfc8 {[%clk 0:03:02.6]}
17. Nab4 {[%clk 0:02:33.6]} 17... Rc4 {[%clk 0:02:53.3]} 18. Nxa6 {[%clk
0:02:27.4]} 18... Qxa6 {[%clk 0:02:53.2]} 19. Nb4 {[%clk 0:02:26.8]} 19... Qa5
{[%clk 0:02:53.5]} 20. Rc1 {[%clk 0:02:17.7]} 20... Rac8 {[%clk 0:02:52.5]} 21.
Rxc4 {[%clk 0:02:17]} 21... Rxc4 {[%clk 0:02:53.4]} 22. Qd3 {[%clk 0:02:11.8]}
22... Qc7 {[%clk 0:02:51.9]} 23. Rd1 {[%clk 0:02:02.3]} 23... h5 {[%clk
0:02:51.5]} 24. f3 {[%clk 0:01:48.2]} 24... Kh7 {[%clk 0:02:32.6]} 25. Qd2
{[%clk 0:01:48.1]} 25... Qc8 {[%clk 0:02:28.9]} 26. Bf1 {[%clk 0:01:44.2]} 26...
Rc7 {[%clk 0:02:29]} 27. Rc1 {[%clk 0:01:34.7]} 27... Rxc1 {[%clk 0:02:26.6]}
28. Qxc1 {[%clk 0:01:35.6]} 28... Qb7 {[%clk 0:02:02.1]} 29. h4 {[%clk
0:01:35.4]} 29... Ng8 {[%clk 0:01:57.6]} 30. Bf2 {[%clk 0:01:21.1]} 30... Bh6
{[%clk 0:01:53.7]} 31. Qc3 {[%clk 0:01:20.9]} 31... Ne7 {[%clk 0:01:53.2]} 32.
Nc2 {[%clk 0:01:13.8]} 32... f5 {[%clk 0:01:50.2]} 33. Nb4 {[%clk 0:01:06.9]}
33... fxe4 {[%clk 0:01:49]} 34. fxe4 {[%clk 0:01:06.8]} 34... Ng8 {[%clk
0:01:44.7]} 35. Qf3 {[%clk 0:00:56.6]} 35... Kg7 {[%clk 0:01:33.7]} 36. Qd3
{[%clk 0:00:31.7]} 36... Nf6 {[%clk 0:01:31.5]} 37. Be2 {[%clk 0:00:28.7]} 37...
Qc8 {[%clk 0:01:20.5]} 38. Kg2 {[%clk 0:00:19]} 38... Bh3+ {[%clk 0:01:17.2]}
39. Kh2 {[%clk 0:00:17.2]} 39... Bd7 {[%clk 0:01:17.8]} 40. Kg2 {[%clk
0:00:17.2]} 40... Qc1 {[%clk 0:01:15.1]} 41. Nc6 {[%clk 0:00:16.2]} 41... Qxb2
{[%clk 0:01:06.5]} 42. Qxb5 {[%clk 0:00:16.3]} 42... Qxb5 {[%clk 0:01:05.8]} 43.
Bxb5 {[%clk 0:00:16.1]} 43... Nxe4 {[%clk 0:01:06.7]} 44. Bxa4 {[%clk
0:00:16.4]} 44... Nxf2 {[%clk 0:01:07]} 45. Kxf2 {[%clk 0:00:16.6]} 45... Bc1
{[%clk 0:01:07.7]} 46. Bc2 {[%clk 0:00:10.9]} 46... Bxa3 {[%clk 0:01:01.5]} 47.
Ne7 {[%clk 0:00:10.8]} 47... Bc5+ {[%clk 0:00:59.5]} 48. Kf3 {[%clk 0:00:10.9]}
48... Bg4+ {[%clk 0:00:59.2]} 49. Kg2 {[%clk 0:00:11]} 49... Kf6 {[%clk
0:00:48.6]} 50. Nxg6 {[%clk 0:00:11.2]} 50... Bf5 {[%clk 0:00:46.6]} 51. Bxf5
{[%clk 0:00:10.3]} 51... Kxf5 {[%clk 0:00:47.5]} 52. Ne7+ {[%clk 0:00:10.1]}
52... Ke4 {[%clk 0:00:48.1]} 53. g4 {[%clk 0:00:09.5]} 53... hxg4 {[%clk
0:00:49]} 54. h5 {[%clk 0:00:09.8]} 54... Be3 {[%clk 0:00:45.6]} 55. Kg3 {[%clk
0:00:10]} 55... Bc1 {[%clk 0:00:31.6]} 56. Kxg4 {[%clk 0:00:09.6]} 56... Kd4
{[%clk 0:00:31]} 57. Kf5 {[%clk 0:00:06.7]} 57... e4 {[%clk 0:00:21.2]} 58. Ke6
{[%clk 0:00:07]} 58... e3 {[%clk 0:00:21]} 59. Nf5+ {[%clk 0:00:07.5]} 59... Kc5
{[%clk 0:00:21.5]} 60. Ng3 {[%clk 0:00:07.8]} 60... Bd2 {[%clk 0:00:19.3]} 61.
Ne2 {[%clk 0:00:07.1]} 61... Kc4 {[%clk 0:00:16.5]} 62. h6 {[%clk 0:00:06.5]}
62... Bc3 {[%clk 0:00:16.1]} 63. Nxc3 {[%clk 0:00:05]} 63... Kxc3 {[%clk
0:00:17]} 64. h7 {[%clk 0:00:05.7]} 64... e2 {[%clk 0:00:17.9]} 65. h8=Q+ {[%clk
0:00:06.3]} 65... Kd3 {[%clk 0:00:17.1]} 66. Qh4 {[%clk 0:00:06.7]} 66... e1=Q+
{[%clk 0:00:18]} 67. Qxe1 {[%clk 0:00:06.7]} 67... Kc4 {[%clk 0:00:18.9]} 68.
Kxd6 {[%clk 0:00:07.2]} 1-0

[Event "Late-Titled-Tuesday-Blitz-September-19-2023"]
[Site "Chess.com"]
[Date "2023.09.19"]
[Round "4"]
[White "CarlssonLudvig"]
[Black "nihalsarin"]
[Result "0-1"]
[WhiteElo "2716"]
[BlackElo "3100"]
[TimeControl "180+1"]
[EndTime "14:38:39 PDT"]
[Termination "nihalsarin won on time"]

1. Nf3 {[%clk 0:03:00.9]} 1... c5 {[%clk 0:02:52.2]} 2. c4 {[%clk 0:03:00]} 2...
Nf6 {[%clk 0:02:47.7]} 3. Nc3 {[%clk 0:02:59.4]} 3... d5 {[%clk 0:02:39.3]} 4.
cxd5 {[%clk 0:02:59.1]} 4... Nxd5 {[%clk 0:02:40.2]} 5. e4 {[%clk 0:02:56.6]}
5... Nb4 {[%clk 0:02:39.2]} 6. Bb5+ {[%clk 0:02:54.1]} 6... N8c6 {[%clk
0:02:36]} 7. d4 {[%clk 0:02:52.5]} 7... cxd4 {[%clk 0:02:32.8]} 8. a3 {[%clk
0:02:52.2]} 8... Bd7 {[%clk 0:02:03.6]} 9. axb4 {[%clk 0:02:44.7]} 9... dxc3
{[%clk 0:02:04.3]} 10. bxc3 {[%clk 0:02:42.5]} 10... g6 {[%clk 0:02:05]} 11. Qb3
{[%clk 0:02:21.2]} 11... Bg7 {[%clk 0:02:04]} 12. O-O {[%clk 0:02:17.5]} 12...
O-O {[%clk 0:02:03.8]} 13. Rd1 {[%clk 0:02:15.9]} 13... Qc7 {[%clk 0:02:01.3]}
14. h3 {[%clk 0:02:01.6]} 14... Be6 {[%clk 0:01:56.1]} 15. Bc4 {[%clk
0:01:41.7]} 15... Na5 {[%clk 0:01:49.9]} 16. Rxa5 {[%clk 0:01:40.8]} 16... Bxc4
{[%clk 0:01:50.5]} 17. Qb2 {[%clk 0:01:40.7]} 17... b6 {[%clk 0:01:49.9]} 18.
Ra3 {[%clk 0:01:37.1]} 18... a5 {[%clk 0:01:45.1]} 19. Be3 {[%clk 0:01:28.9]}
19... a4 {[%clk 0:01:39.4]} 20. Bd4 {[%clk 0:01:26.9]} 20... e5 {[%clk
0:01:24.6]} 21. Be3 {[%clk 0:01:26.3]} 21... Rfc8 {[%clk 0:01:25.3]} 22. Nd2
{[%clk 0:01:11]} 22... Be6 {[%clk 0:01:17.4]} 23. c4 {[%clk 0:01:10.1]} 23...
Bxc4 {[%clk 0:01:12.3]} 24. Nxc4 {[%clk 0:01:08.5]} 24... Qxc4 {[%clk
0:01:13.2]} 25. Bxb6 {[%clk 0:01:06.8]} 25... Rcb8 {[%clk 0:01:13.6]} 26. Rc1
{[%clk 0:00:46.6]} 26... Qxe4 {[%clk 0:01:11.3]} 27. Bc5 {[%clk 0:00:45.6]}
27... Bf8 {[%clk 0:01:07]} 28. Qc2 {[%clk 0:00:40.4]} 28... Qxc2 {[%clk
0:01:00.8]} 29. Rxc2 {[%clk 0:00:41.3]} 29... Bxc5 {[%clk 0:01:00.1]} 30. bxc5
{[%clk 0:00:42.2]} 30... Rb3 {[%clk 0:00:46.7]} 31. Rxb3 {[%clk 0:00:28.1]}
31... axb3 {[%clk 0:00:47.6]} 32. Rb2 {[%clk 0:00:28.6]} 32... Rc8 {[%clk
0:00:36.3]} 33. Rxb3 {[%clk 0:00:28]} 33... Rxc5 {[%clk 0:00:37.2]} 34. h4
{[%clk 0:00:25.8]} 34... Kg7 {[%clk 0:00:32.9]} 35. g3 {[%clk 0:00:25.8]} 35...
f5 {[%clk 0:00:32.9]} 36. Kg2 {[%clk 0:00:25.5]} 36... e4 {[%clk 0:00:32.9]} 37.
Rb7+ {[%clk 0:00:25.2]} 37... Kh6 {[%clk 0:00:33.5]} 38. Re7 {[%clk 0:00:22.6]}
38... Rc2 {[%clk 0:00:33.7]} 39. Kf1 {[%clk 0:00:22.7]} 39... Ra2 {[%clk
0:00:30.1]} 40. Kg2 {[%clk 0:00:20.9]} 40... Rb2 {[%clk 0:00:30.7]} 41. Kf1
{[%clk 0:00:21]} 41... Rb8 {[%clk 0:00:31.5]} 42. Ke2 {[%clk 0:00:20.2]} 42...
Rg8 {[%clk 0:00:32]} 43. Ke3 {[%clk 0:00:18.7]} 43... Rg7 {[%clk 0:00:32.5]} 44.
Re8 {[%clk 0:00:18.9]} 44... Kh5 {[%clk 0:00:32]} 45. Rh8 {[%clk 0:00:18.3]}
45... Kg4 {[%clk 0:00:29.9]} 46. Re8 {[%clk 0:00:17.6]} 46... Ra7 {[%clk
0:00:29.7]} 47. Rh8 {[%clk 0:00:14]} 47... Ra3+ {[%clk 0:00:19]} 48. Ke2 {[%clk
0:00:14.1]} 48... Kh3 {[%clk 0:00:19.8]} 49. Rxh7 {[%clk 0:00:14]} 49... Kg2
{[%clk 0:00:20.6]} 50. Rg7 {[%clk 0:00:13.2]} 50... Ra2+ {[%clk 0:00:19.8]} 51.
Ke3 {[%clk 0:00:13.4]} 51... Rxf2 {[%clk 0:00:20.6]} 52. Rxg6 {[%clk 0:00:13.6]}
52... Rf3+ {[%clk 0:00:21.4]} 53. Kd4 {[%clk 0:00:13.3]} 53... Rd3+ {[%clk
0:00:11.7]} 54. Ke5 {[%clk 0:00:12.6]} 54... Rxg3 {[%clk 0:00:12.5]} 55. Rf6
{[%clk 0:00:03.4]} 55... e3 {[%clk 0:00:09.8]} 56. Kxf5 {[%clk 0:00:01.3]} 56...
Rf3+ {[%clk 0:00:10.1]} 0-1

[Event "Late-Titled-Tuesday-Blitz-September-19-2023"]
[Site "Chess.com"]
[Date "2023.09.19"]
[Round "4"]
[White "krzyzan94"]
[Black "JackRodgers"]
[Result "1-0"]
[WhiteElo "2794"]
[BlackElo "2502"]
[TimeControl "180+1"]
[EndTime "14:38:40 PDT"]
[Termination "krzyzan94 won by checkmate"]

1. e4 {[%clk 0:03:00.9]} 1... c5 {[%clk 0:02:59.7]} 2. Nf3 {[%clk 0:03:00.6]}
2... g6 {[%clk 0:02:59.9]} 3. Bc4 {[%clk 0:02:57.5]} 3... Bg7 {[%clk 0:02:59.8]}
4. c3 {[%clk 0:02:53]} 4... e6 {[%clk 0:02:55]} 5. d4 {[%clk 0:02:49.5]} 5...
cxd4 {[%clk 0:02:55.9]} 6. Bb3 {[%clk 0:02:49]} 6... d3 {[%clk 0:02:47.5]} 7.
Qxd3 {[%clk 0:02:47.1]} 7... Nc6 {[%clk 0:02:47.5]} 8. O-O {[%clk 0:02:47.2]}
8... Nge7 {[%clk 0:02:47.2]} 9. Rd1 {[%clk 0:02:39.2]} 9... O-O {[%clk
0:02:45.6]} 10. Qd6 {[%clk 0:02:32.1]} 10... Qa5 {[%clk 0:02:33.7]} 11. Na3
{[%clk 0:02:27.3]} 11... Qh5 {[%clk 0:02:12.8]} 12. Bg5 {[%clk 0:02:11.4]} 12...
f6 {[%clk 0:02:05.5]} 13. Be3 {[%clk 0:02:02.5]} 13... g5 {[%clk 0:01:51.9]} 14.
h3 {[%clk 0:01:54.1]} 14... g4 {[%clk 0:01:42.4]} 15. hxg4 {[%clk 0:01:53.6]}
15... Qxg4 {[%clk 0:01:43.3]} 16. Qf4 {[%clk 0:01:29.5]} 16... Qh5 {[%clk
0:01:36.1]} 17. Nc4 {[%clk 0:01:19.1]} 17... Ng6 {[%clk 0:01:33.7]} 18. Qg3
{[%clk 0:01:16.1]} 18... Kh8 {[%clk 0:01:04.4]} 19. Nd6 {[%clk 0:01:13.7]} 19...
Nce5 {[%clk 0:00:45.5]} 20. Nh2 {[%clk 0:01:03.3]} 20... a5 {[%clk 0:00:36.9]}
21. a4 {[%clk 0:00:59.9]} 21... Nf7 {[%clk 0:00:28]} 22. Nxc8 {[%clk 0:00:48]}
22... Raxc8 {[%clk 0:00:28.9]} 23. Rxd7 {[%clk 0:00:48.2]} 23... Nfe5 {[%clk
0:00:29.4]} 24. Rxb7 {[%clk 0:00:46.1]} 24... Rb8 {[%clk 0:00:28.8]} 25. Rxb8
{[%clk 0:00:39.6]} 25... Rxb8 {[%clk 0:00:29.7]} 26. Bxe6 {[%clk 0:00:38.2]}
26... Rxb2 {[%clk 0:00:29.3]} 27. Ng4 {[%clk 0:00:22.4]} 27... Rc2 {[%clk
0:00:22.5]} 28. Bd4 {[%clk 0:00:20.7]} 28... Qg5 {[%clk 0:00:19.8]} 29. Nxe5
{[%clk 0:00:18.9]} 29... Rc1+ {[%clk 0:00:18.6]} 30. Rxc1 {[%clk 0:00:19.2]}
30... Qxc1+ {[%clk 0:00:19.5]} 31. Kh2 {[%clk 0:00:19.7]} 31... fxe5 {[%clk
0:00:14.8]} 32. Be3 {[%clk 0:00:13.3]} 32... Qxc3 {[%clk 0:00:11.5]} 33. Bf5
{[%clk 0:00:11.3]} 33... Qc6 {[%clk 0:00:09.6]} 34. Qh3 {[%clk 0:00:10.1]} 34...
Kg8 {[%clk 0:00:08.4]} 35. Qh5 {[%clk 0:00:08.5]} 35... Qf6 {[%clk 0:00:06.6]}
36. g3 {[%clk 0:00:08.2]} 36... Bf8 {[%clk 0:00:04.6]} 37. Bg5 {[%clk
0:00:08.6]} 37... Qg7 {[%clk 0:00:04.6]} 38. Qd1 {[%clk 0:00:08.5]} 38... Qf7
{[%clk 0:00:03.3]} 39. Qd2 {[%clk 0:00:07.6]} 39... Ne7 {[%clk 0:00:03.5]} 40.
Bxe7 {[%clk 0:00:07.5]} 40... Bxe7 {[%clk 0:00:02.4]} 41. Qxa5 {[%clk
0:00:07.9]} 41... Qh5+ {[%clk 0:00:03.1]} 42. Kg2 {[%clk 0:00:08.5]} 42... Qf7
{[%clk 0:00:03.4]} 43. Qa8+ {[%clk 0:00:08.4]} 43... Kg7 {[%clk 0:00:03.7]} 44.
a5 {[%clk 0:00:08.6]} 44... Bc5 {[%clk 0:00:03.8]} 45. Qb8 {[%clk 0:00:09.1]}
45... Qe7 {[%clk 0:00:04.1]} 46. Qb5 {[%clk 0:00:08.2]} 46... Qd6 {[%clk
0:00:04.3]} 47. a6 {[%clk 0:00:07.7]} 47... Qd4 {[%clk 0:00:04.7]} 48. Qd7+
{[%clk 0:00:07.5]} 48... Qxd7 {[%clk 0:00:05.1]} 49. Bxd7 {[%clk 0:00:08.4]}
49... Kf6 {[%clk 0:00:05.6]} 50. f4 {[%clk 0:00:08.4]} 50... h6 {[%clk
0:00:05.4]} 51. Kf3 {[%clk 0:00:08.8]} 51... Ke7 {[%clk 0:00:05.7]} 52. Bg4
{[%clk 0:00:08.9]} 52... Kf6 {[%clk 0:00:05.9]} 53. Bh5 {[%clk 0:00:09.3]} 53...
Bb6 {[%clk 0:00:05.7]} 54. Kg4 {[%clk 0:00:09.6]} 54... Ke6 {[%clk 0:00:05.9]}
55. Bg6 {[%clk 0:00:09.4]} 55... Kf6 {[%clk 0:00:06.3]} 56. Bf5 {[%clk
0:00:09.9]} 56... Ba7 {[%clk 0:00:05.8]} 57. Kh5 {[%clk 0:00:10.3]} 57... exf4
{[%clk 0:00:04.8]} 58. gxf4 {[%clk 0:00:10.8]} 58... Kg7 {[%clk 0:00:05.1]} 59.
e5 {[%clk 0:00:11.2]} 59... Be3 {[%clk 0:00:05.7]} 60. Be4 {[%clk 0:00:10.5]}
60... Ba7 {[%clk 0:00:05.6]} 61. f5 {[%clk 0:00:11.1]} 61... Bd4 {[%clk
0:00:05.8]} 62. f6+ {[%clk 0:00:10.7]} 62... Kf7 {[%clk 0:00:06.3]} 63. Bd5+
{[%clk 0:00:11.1]} 63... Kf8 {[%clk 0:00:06.8]} 64. Kxh6 {[%clk 0:00:10.8]}
64... Be3+ {[%clk 0:00:06]} 65. Kg6 {[%clk 0:00:11.1]} 65... Ba7 {[%clk
0:00:06.9]} 66. e6 {[%clk 0:00:11.6]} 66... Bc5 {[%clk 0:00:07.6]} 67. e7+
{[%clk 0:00:11.7]} 67... Ke8 {[%clk 0:00:08.2]} 68. Bc6# {[%clk 0:00:11.7]} 1-0